[Event "*** SCC Grand Prix: Titled Tuesday Blitz"]
[Site "Chess.com"]
[Date "2020.07.21"]
[Round "7"]
[White "Quiet_Desperation"]
[Black "dopolian"]
[Result "0-1"]
[WhiteElo "2233"]
[BlackElo "2422"]
[TimeControl "180+1"]
[EndTime "11:14:31 PDT"]
[Termination "dopolian won by resignation"]

1. d4 {[%clk 0:03:00.9]} 1... Nf6 {[%clk 0:02:58.5]} 2. Nf3 {[%clk 0:02:59.9]}
2... g6 {[%clk 0:02:44.2]} 3. c4 {[%clk 0:02:58.9]} 3... c5 {[%clk 0:02:43.2]}
4. Nc3 {[%clk 0:02:58.8]} 4... cxd4 {[%clk 0:02:42.4]} 5. Qxd4 {[%clk
0:02:59.2]} 5... Bg7 {[%clk 0:02:43.3]} 6. Bg5 {[%clk 0:02:58.9]} 6... O-O
{[%clk 0:02:43.3]} 7. O-O-O {[%clk 0:02:58.8]} 7... Nc6 {[%clk 0:02:42.2]} 8.
Qd2 {[%clk 0:02:58.6]} 8... d6 {[%clk 0:02:37.5]} 9. Bh6 {[%clk 0:02:57.5]} 9...
Bf5 {[%clk 0:02:27.6]} 10. Bxg7 {[%clk 0:02:56.9]} 10... Kxg7 {[%clk 0:02:27.7]}
11. h3 {[%clk 0:02:52]} 11... Rc8 {[%clk 0:02:22.3]} 12. g4 {[%clk 0:02:51.7]}
12... Ne4 {[%clk 0:02:22.2]} 13. Nxe4 {[%clk 0:02:50.6]} 13... Bxe4 {[%clk
0:02:22.8]} 14. Rg1 {[%clk 0:02:47.2]} 14... Ne5 {[%clk 0:02:10.1]} 15. Nxe5
{[%clk 0:02:47.4]} 15... dxe5 {[%clk 0:02:09.8]} 16. e3 {[%clk 0:02:47]} 16...
Bf3 {[%clk 0:01:44.5]} 17. Qxd8 {[%clk 0:02:43.2]} 17... Rfxd8 {[%clk
0:01:45.4]} 18. Rxd8 {[%clk 0:02:42.9]} 18... Rxd8 {[%clk 0:01:46.3]} 19. Kc2
{[%clk 0:02:36.3]} 19... Rd1 {[%clk 0:01:34.1]} 20. Be2 {[%clk 0:02:35.8]} 20...
Rxg1 {[%clk 0:01:30.4]} 21. Bxf3 {[%clk 0:02:35.9]} 21... b6 {[%clk 0:01:20.5]}
22. b4 {[%clk 0:02:35.9]} 22... Rf1 {[%clk 0:01:17.1]} 23. Kb3 {[%clk
0:02:36.1]} 23... Rxf2 {[%clk 0:01:16.5]} 24. Bb7 {[%clk 0:02:36.2]} 24... Kf8
{[%clk 0:01:03.9]} 25. c5 {[%clk 0:02:30.5]} 25... bxc5 {[%clk 0:01:04.2]} 26.
bxc5 {[%clk 0:02:30.4]} 26... Ke8 {[%clk 0:01:04.9]} 27. a4 {[%clk 0:02:26.3]}
27... Re2 {[%clk 0:01:02.7]} 28. Kc4 {[%clk 0:02:23.9]} 28... Rxe3 {[%clk
0:00:57.4]} 29. Kb5 {[%clk 0:02:23.3]} 29... Kd7 {[%clk 0:00:55.3]} 30. Ka6
{[%clk 0:02:22.3]} 30... Kc7 {[%clk 0:00:51.8]} 31. c6 {[%clk 0:02:21.2]} 31...
Ra3 {[%clk 0:00:46.4]} 32. a5 {[%clk 0:02:21.2]} 32... e4 {[%clk 0:00:43.3]} 0-1

[Event "*** SCC Grand Prix: Titled Tuesday Blitz"]
[Site "Chess.com"]
[Date "2020.07.21"]
[Round "7"]
[White "bazar-wokzal"]
[Black "grandcoach"]
[Result "1-0"]
[WhiteElo "2415"]
[BlackElo "2124"]
[TimeControl "180+1"]
[EndTime "11:14:32 PDT"]
[Termination "bazar-wokzal won on time"]

1. e4 {[%clk 0:03:00.9]} 1... c5 {[%clk 0:02:52.2]} 2. c3 {[%clk 0:03:00.6]}
2... Nf6 {[%clk 0:02:48.6]} 3. e5 {[%clk 0:03:00.6]} 3... Nd5 {[%clk 0:02:49.2]}
4. d4 {[%clk 0:03:01]} 4... cxd4 {[%clk 0:02:48.9]} 5. cxd4 {[%clk 0:03:01.1]}
5... d6 {[%clk 0:02:47.3]} 6. Bc4 {[%clk 0:03:00.5]} 6... e6 {[%clk 0:02:22.8]}
7. Nf3 {[%clk 0:02:59.5]} 7... Nc6 {[%clk 0:02:21.7]} 8. Qe2 {[%clk 0:02:58.2]}
8... dxe5 {[%clk 0:02:11]} 9. dxe5 {[%clk 0:02:58.1]} 9... Bb4+ {[%clk
0:01:59.1]} 10. Bd2 {[%clk 0:02:57.6]} 10... O-O {[%clk 0:01:53.2]} 11. Nc3
{[%clk 0:02:55]} 11... Bxc3 {[%clk 0:01:43.8]} 12. bxc3 {[%clk 0:02:54.7]} 12...
Nce7 {[%clk 0:01:26.4]} 13. Bd3 {[%clk 0:02:51.7]} 13... Bd7 {[%clk 0:01:23]}
14. Bxh7+ {[%clk 0:02:42.9]} 14... Kxh7 {[%clk 0:01:23.9]} 15. Ng5+ {[%clk
0:02:42.8]} 15... Kg6 {[%clk 0:01:22.3]} 16. h4 {[%clk 0:02:29.7]} 1-0

[Event "*** SCC Grand Prix: Titled Tuesday Blitz"]
[Site "Chess.com"]
[Date "2020.07.21"]
[Round "7"]
[White "Ermito2020"]
[Black "Anton_Demchenko"]
[Result "0-1"]
[WhiteElo "2593"]
[BlackElo "2830"]
[TimeControl "180+1"]
[EndTime "11:14:33 PDT"]
[Termination "Anton_Demchenko won by resignation"]

1. e4 {[%clk 0:03:00.9]} 1... e5 {[%clk 0:02:58.4]} 2. Nf3 {[%clk 0:03:00.4]}
2... Nc6 {[%clk 0:02:59.1]} 3. d4 {[%clk 0:03:00.9]} 3... exd4 {[%clk
0:02:58.9]} 4. Bc4 {[%clk 0:03:01.5]} 4... Nf6 {[%clk 0:02:58.5]} 5. O-O {[%clk
0:03:01.6]} 5... Nxe4 {[%clk 0:02:57.4]} 6. Re1 {[%clk 0:03:02.2]} 6... d5
{[%clk 0:02:57.8]} 7. Bxd5 {[%clk 0:03:02.6]} 7... Qxd5 {[%clk 0:02:58.7]} 8.
Nc3 {[%clk 0:03:03]} 8... Qh5 {[%clk 0:02:56]} 9. Nxe4 {[%clk 0:03:03.4]} 9...
Be6 {[%clk 0:02:55.6]} 10. Bg5 {[%clk 0:03:04]} 10... h6 {[%clk 0:02:54.8]} 11.
Bf6 {[%clk 0:03:03.3]} 11... Qg6 {[%clk 0:02:55.2]} 12. Bh4 {[%clk 0:01:17.1]}
12... Bb4 {[%clk 0:02:42]} 13. c3 {[%clk 0:01:05.4]} 13... dxc3 {[%clk
0:02:42.9]} 14. bxc3 {[%clk 0:01:05.4]} 14... Ba5 {[%clk 0:02:43.4]} 15. Rb1
{[%clk 0:00:57.2]} 15... Bb6 {[%clk 0:02:41.8]} 16. c4 {[%clk 0:00:55.7]} 16...
O-O {[%clk 0:02:40.7]} 17. c5 {[%clk 0:00:55.7]} 17... Ba5 {[%clk 0:02:40.9]}
18. Re3 {[%clk 0:00:50.6]} 18... Bf5 {[%clk 0:02:40]} 19. Qa4 {[%clk 0:00:39.1]}
19... Rae8 {[%clk 0:02:37.8]} 20. Rxb7 {[%clk 0:00:08.8]} 20... Rxe4 {[%clk
0:02:37]} 21. Qxc6 {[%clk 0:00:07]} 21... Qxc6 {[%clk 0:02:35.9]} 0-1

[Event "*** SCC Grand Prix: Titled Tuesday Blitz"]
[Site "Chess.com"]
[Date "2020.07.21"]
[Round "7"]
[White "Evachess2006"]
[Black "bmt011"]
[Result "0-1"]
[WhiteElo "1604"]
[BlackElo "2129"]
[TimeControl "180+1"]
[EndTime "11:14:57 PDT"]
[Termination "bmt011 won on time"]

1. e4 {[%clk 0:03:00.9]} 1... e6 {[%clk 0:02:59.3]} 2. d4 {[%clk 0:02:59.4]}
2... d5 {[%clk 0:02:59.4]} 3. exd5 {[%clk 0:02:58.3]} 3... exd5 {[%clk
0:02:59.4]} 4. Bd3 {[%clk 0:02:59.2]} 4... Nc6 {[%clk 0:02:58.5]} 5. c3 {[%clk
0:02:54.5]} 5... Bd6 {[%clk 0:02:58.9]} 6. Nf3 {[%clk 0:02:52.9]} 6... Bg4
{[%clk 0:02:59.1]} 7. O-O {[%clk 0:02:47]} 7... Nce7 {[%clk 0:02:58]} 8. Bg5
{[%clk 0:02:37.5]} 8... f6 {[%clk 0:02:57.6]} 9. Bh4 {[%clk 0:02:36.1]} 9... Qd7
{[%clk 0:02:57.8]} 10. Re1 {[%clk 0:02:32.5]} 10... O-O-O {[%clk 0:02:57.6]} 11.
Nbd2 {[%clk 0:02:14]} 11... g5 {[%clk 0:02:57.3]} 12. Bg3 {[%clk 0:01:48.3]}
12... Bxg3 {[%clk 0:02:57.3]} 13. hxg3 {[%clk 0:01:48.9]} 13... h5 {[%clk
0:02:57.3]} 14. Qe2 {[%clk 0:01:45.9]} 14... h4 {[%clk 0:02:55.7]} 15. gxh4
{[%clk 0:01:42.7]} 15... Rxh4 {[%clk 0:02:50.6]} 16. Qe3 {[%clk 0:00:15.5]}
16... Rh5 {[%clk 0:02:42.9]} 17. Nf1 {[%clk 0:00:08.1]} 17... Nf5 {[%clk
0:02:42.4]} 18. Bxf5 {[%clk 0:00:05.7]} 18... Bxf5 {[%clk 0:02:41.6]} 19. Ng3
{[%clk 0:00:05.3]} 19... Rh7 {[%clk 0:02:25.4]} 0-1

[Event "*** SCC Grand Prix: Titled Tuesday Blitz"]
[Site "Chess.com"]
[Date "2020.07.21"]
[Round "7"]
[White "boo786"]
[Black "AGW2016"]
[Result "1-0"]
[WhiteElo "2396"]
[BlackElo "2247"]
[TimeControl "180+1"]
[EndTime "11:15:07 PDT"]
[Termination "boo786 won by checkmate"]

1. Nf3 {[%clk 0:03:00.4]} 1... Nf6 {[%clk 0:03:00.4]} 2. c4 {[%clk 0:02:57.8]}
2... g6 {[%clk 0:03:01]} 3. Nc3 {[%clk 0:02:57.9]} 3... Bg7 {[%clk 0:03:01.9]}
4. e4 {[%clk 0:02:57.7]} 4... d6 {[%clk 0:03:01.2]} 5. d4 {[%clk 0:02:58.1]}
5... O-O {[%clk 0:03:01.7]} 6. Be2 {[%clk 0:02:58.2]} 6... e5 {[%clk 0:03:01.6]}
7. d5 {[%clk 0:02:58.4]} 7... a5 {[%clk 0:03:00.6]} 8. Bg5 {[%clk 0:02:58.1]}
8... h6 {[%clk 0:03:00.5]} 9. Be3 {[%clk 0:02:58.1]} 9... Ng4 {[%clk 0:02:49.1]}
10. Bd2 {[%clk 0:02:57.9]} 10... f5 {[%clk 0:02:44.2]} 11. h3 {[%clk 0:02:58.3]}
11... Nf6 {[%clk 0:02:43.8]} 12. exf5 {[%clk 0:02:58.3]} 12... gxf5 {[%clk
0:02:41.8]} 13. Qc1 {[%clk 0:02:58.8]} 13... f4 {[%clk 0:02:39.2]} 14. g3 {[%clk
0:02:58.8]} 14... e4 {[%clk 0:02:39.1]} 15. Nh4 {[%clk 0:02:59.3]} 15... e3
{[%clk 0:02:24.7]} 16. fxe3 {[%clk 0:02:58.1]} 16... fxg3 {[%clk 0:02:25.4]} 17.
Qc2 {[%clk 0:02:58.3]} 17... Na6 {[%clk 0:02:22]} 18. O-O-O {[%clk 0:02:33.4]}
18... Nb4 {[%clk 0:02:11.2]} 19. Qg6 {[%clk 0:02:26.2]} 19... Qe8 {[%clk
0:02:08.8]} 20. Qxe8 {[%clk 0:02:12.1]} 20... Rxe8 {[%clk 0:02:08.2]} 21. Rhg1
{[%clk 0:02:07.7]} 21... Ne4 {[%clk 0:02:06.6]} 22. Nxe4 {[%clk 0:01:15.1]}
22... Rxe4 {[%clk 0:02:07.5]} 23. Rxg3 {[%clk 0:01:13.9]} 23... Rxh4 {[%clk
0:01:51.2]} 24. Rdg1 {[%clk 0:01:10.4]} 24... Bf5 {[%clk 0:01:51.4]} 25. Rxg7+
{[%clk 0:01:02.7]} 25... Kh8 {[%clk 0:01:49.9]} 26. a3 {[%clk 0:00:44.5]} 26...
Nd3+ {[%clk 0:01:47.3]} 27. Bxd3 {[%clk 0:00:43.4]} 27... Bxd3 {[%clk
0:01:47.3]} 28. Bc3 {[%clk 0:00:43.2]} 28... Rxc4 {[%clk 0:01:42.8]} 29. Rg8+
{[%clk 0:00:40.8]} 29... Kh7 {[%clk 0:01:40.7]} 30. R1g7# {[%clk 0:00:40]} 1-0

[Event "*** SCC Grand Prix: Titled Tuesday Blitz"]
[Site "Chess.com"]
[Date "2020.07.21"]
[Round "7"]
[White "Stormeman100100"]
[Black "HElissalt"]
[Result "1/2-1/2"]
[WhiteElo "2434"]
[BlackElo "2274"]
[TimeControl "180+1"]
[EndTime "11:15:24 PDT"]
[Termination "Game drawn by repetition"]

1. Nf3 {[%clk 0:03:00.9]} 1... Nf6 {[%clk 0:02:52.5]} 2. b3 {[%clk 0:03:01]}
2... e6 {[%clk 0:02:49.5]} 3. Bb2 {[%clk 0:03:01.5]} 3... d5 {[%clk 0:02:48]} 4.
e3 {[%clk 0:03:01.4]} 4... Nbd7 {[%clk 0:02:45.4]} 5. c4 {[%clk 0:03:01.8]} 5...
Bd6 {[%clk 0:02:42.9]} 6. Nc3 {[%clk 0:03:02.1]} 6... c6 {[%clk 0:02:37.6]} 7.
d4 {[%clk 0:03:01.7]} 7... O-O {[%clk 0:02:35.5]} 8. Bd3 {[%clk 0:03:01.4]} 8...
e5 {[%clk 0:02:25.8]} 9. c5 {[%clk 0:03:00.9]} 9... Bc7 {[%clk 0:02:24.7]} 10.
dxe5 {[%clk 0:02:57]} 10... Nxe5 {[%clk 0:02:23.7]} 11. Nxe5 {[%clk 0:02:55.6]}
11... Bxe5 {[%clk 0:02:23.2]} 12. Na4 {[%clk 0:02:54.4]} 12... Bxb2 {[%clk
0:02:18.6]} 13. Nxb2 {[%clk 0:02:55.3]} 13... Qa5+ {[%clk 0:02:18.4]} 14. Qd2
{[%clk 0:02:54.6]} 14... Qxc5 {[%clk 0:02:18.5]} 15. O-O {[%clk 0:02:54.7]}
15... Re8 {[%clk 0:02:16.1]} 16. Rac1 {[%clk 0:02:52.4]} 16... Qe7 {[%clk
0:02:01.3]} 17. h3 {[%clk 0:02:52.2]} 17... Qe5 {[%clk 0:01:55.9]} 18. Na4
{[%clk 0:02:51.8]} 18... Qg5 {[%clk 0:01:47.1]} 19. Kh1 {[%clk 0:02:50.3]} 19...
Qh4 {[%clk 0:01:42.3]} 20. Kg1 {[%clk 0:02:44.5]} 20... Bxh3 {[%clk 0:01:31.7]}
21. gxh3 {[%clk 0:02:28.1]} 21... Qxh3 {[%clk 0:01:31.5]} 22. f3 {[%clk
0:02:17.4]} 22... Re5 {[%clk 0:01:24.1]} 23. Qg2 {[%clk 0:02:16.6]} 23... Qh6
{[%clk 0:01:16.1]} 24. f4 {[%clk 0:02:10.5]} 24... Rxe3 {[%clk 0:01:16.2]} 25.
Rf3 {[%clk 0:02:10.6]} 25... Rae8 {[%clk 0:01:09.1]} 26. Rcf1 {[%clk 0:02:07]}
26... Qh4 {[%clk 0:00:46.2]} 27. Qh2 {[%clk 0:01:59.9]} 27... Qg4+ {[%clk
0:00:29.5]} 28. Qg2 {[%clk 0:01:59.4]} 28... Qh4 {[%clk 0:00:24.9]} 29. Qh2
{[%clk 0:01:49.7]} 29... Qg4+ {[%clk 0:00:24.6]} 30. Qg2 {[%clk 0:01:47.6]}
30... Qh4 {[%clk 0:00:24.5]} 1/2-1/2

[Event "*** SCC Grand Prix: Titled Tuesday Blitz"]
[Site "Chess.com"]
[Date "2020.07.21"]
[Round "7"]
[White "Gandrade2"]
[Black "PattyCastillo"]
[Result "1-0"]
[WhiteElo "2078"]
[BlackElo "1935"]
[TimeControl "180+1"]
[EndTime "11:15:27 PDT"]
[Termination "Gandrade2 won by resignation"]

1. d4 {[%clk 0:03:00.9]} 1... d5 {[%clk 0:02:58.6]} 2. c4 {[%clk 0:03:01]} 2...
c6 {[%clk 0:02:56.3]} 3. cxd5 {[%clk 0:03:01.2]} 3... cxd5 {[%clk 0:02:55.2]} 4.
Nc3 {[%clk 0:03:01.8]} 4... Nf6 {[%clk 0:02:53.3]} 5. Bf4 {[%clk 0:03:01.9]}
5... e6 {[%clk 0:02:51.7]} 6. e3 {[%clk 0:03:02.2]} 6... Bd6 {[%clk 0:02:50]} 7.
Bxd6 {[%clk 0:03:02.4]} 7... Qxd6 {[%clk 0:02:49.6]} 8. f4 {[%clk 0:03:03.1]}
8... O-O {[%clk 0:02:48.9]} 9. Nf3 {[%clk 0:03:03.3]} 9... Qb4 {[%clk
0:02:35.9]} 10. Qd2 {[%clk 0:02:56.1]} 10... Nc6 {[%clk 0:02:28.3]} 11. Bd3
{[%clk 0:02:55.1]} 11... Bd7 {[%clk 0:02:16.2]} 12. O-O {[%clk 0:02:54.6]} 12...
Rac8 {[%clk 0:02:07.2]} 13. Ne5 {[%clk 0:02:48.1]} 13... Qd6 {[%clk 0:01:59.3]}
14. Rac1 {[%clk 0:02:41.7]} 14... a6 {[%clk 0:01:51.1]} 15. g4 {[%clk
0:02:33.4]} 15... Rfd8 {[%clk 0:01:25.3]} 16. g5 {[%clk 0:02:22]} 16... Ne8
{[%clk 0:01:20.9]} 17. Qe2 {[%clk 0:02:05.3]} 17... Ne7 {[%clk 0:01:01.3]} 18.
Bxh7+ {[%clk 0:01:44.3]} 18... Kxh7 {[%clk 0:01:00.4]} 19. Qh5+ {[%clk 0:01:44]}
19... Kg8 {[%clk 0:00:55]} 20. Qxf7+ {[%clk 0:01:44.1]} 20... Kh8 {[%clk
0:00:51.2]} 21. Rf3 {[%clk 0:01:31.9]} 21... Nf5 {[%clk 0:00:34.7]} 22. Rh3+
{[%clk 0:01:28.5]} 22... Nh6 {[%clk 0:00:33.7]} 23. gxh6 {[%clk 0:01:24.8]} 1-0

[Event "*** SCC Grand Prix: Titled Tuesday Blitz"]
[Site "Chess.com"]
[Date "2020.07.21"]
[Round "7"]
[White "northridgehawk"]
[Black "Noam_Vitenberg"]
[Result "0-1"]
[WhiteElo "2342"]
[BlackElo "2481"]
[TimeControl "180+1"]
[EndTime "11:15:28 PDT"]
[Termination "Noam_Vitenberg won by resignation"]

1. e4 {[%clk 0:03:00.9]} 1... e5 {[%clk 0:02:59.6]} 2. Bc4 {[%clk 0:02:48.9]}
2... Nf6 {[%clk 0:02:58.1]} 3. Nc3 {[%clk 0:02:44.5]} 3... Nxe4 {[%clk
0:02:54.2]} 4. Qh5 {[%clk 0:02:41.8]} 4... Nd6 {[%clk 0:02:52.3]} 5. Bb3 {[%clk
0:02:40.7]} 5... Be7 {[%clk 0:02:52.3]} 6. Qxe5 {[%clk 0:02:36.9]} 6... O-O
{[%clk 0:02:52.2]} 7. Nge2 {[%clk 0:02:36.9]} 7... Nc6 {[%clk 0:02:51.4]} 8. Qf4
{[%clk 0:02:36.3]} 8... Bg5 {[%clk 0:02:48.7]} 9. Qf3 {[%clk 0:02:33.2]} 9... b6
{[%clk 0:02:40.6]} 10. O-O {[%clk 0:02:26.9]} 10... Bb7 {[%clk 0:02:40.5]} 11.
Nd5 {[%clk 0:02:23.8]} 11... Na5 {[%clk 0:02:24.3]} 12. d4 {[%clk 0:02:10.3]}
12... Re8 {[%clk 0:02:17.8]} 13. Nec3 {[%clk 0:01:46.3]} 13... Bxc1 {[%clk
0:02:05.2]} 14. Raxc1 {[%clk 0:01:43.5]} 14... Qg5 {[%clk 0:02:04.3]} 15. Rce1
{[%clk 0:01:34.6]} 15... Nac4 {[%clk 0:01:59.3]} 16. Bxc4 {[%clk 0:01:17.5]}
16... Nxc4 {[%clk 0:01:57.2]} 17. Ne7+ {[%clk 0:00:52.5]} 17... Rxe7 {[%clk
0:01:48.3]} 18. Qxb7 {[%clk 0:00:51.6]} 18... Rae8 {[%clk 0:01:47.7]} 19. Rxe7
{[%clk 0:00:49]} 19... Qxe7 {[%clk 0:01:48.6]} 20. Qxa7 {[%clk 0:00:35.6]} 20...
Nd2 {[%clk 0:01:46.1]} 21. Nd5 {[%clk 0:00:26]} 21... Qe1 {[%clk 0:01:31.2]} 22.
Ne3 {[%clk 0:00:16.6]} 0-1

[Event "*** SCC Grand Prix: Titled Tuesday Blitz"]
[Site "Chess.com"]
[Date "2020.07.21"]
[Round "7"]
[White "MathiasWomacka"]
[Black "ftorodent"]
[Result "0-1"]
[WhiteElo "2460"]
[BlackElo "2647"]
[TimeControl "180+1"]
[EndTime "11:15:33 PDT"]
[Termination "ftorodent won by resignation"]

1. e4 {[%clk 0:03:00.9]} 1... c5 {[%clk 0:02:58.9]} 2. Nf3 {[%clk 0:03:00.2]}
2... e6 {[%clk 0:02:58.8]} 3. d4 {[%clk 0:03:00.1]} 3... cxd4 {[%clk 0:02:59]}
4. Nxd4 {[%clk 0:03:01]} 4... a6 {[%clk 0:02:59.3]} 5. Bd3 {[%clk 0:02:59.8]}
5... Bc5 {[%clk 0:02:59.2]} 6. Nb3 {[%clk 0:02:59.2]} 6... Be7 {[%clk
0:02:59.2]} 7. Qg4 {[%clk 0:02:58.3]} 7... g6 {[%clk 0:02:58.7]} 8. Qe2 {[%clk
0:02:58.1]} 8... d6 {[%clk 0:02:58.9]} 9. O-O {[%clk 0:02:57.6]} 9... Nc6 {[%clk
0:02:58.9]} 10. a4 {[%clk 0:02:46]} 10... Ne5 {[%clk 0:02:57.1]} 11. Na3 {[%clk
0:02:39.3]} 11... Nf6 {[%clk 0:02:55.9]} 12. Bh6 {[%clk 0:02:37.3]} 12... Nfg4
{[%clk 0:02:51.9]} 13. Bg7 {[%clk 0:02:35.1]} 13... Rg8 {[%clk 0:02:52.1]} 14.
Bxe5 {[%clk 0:02:35.1]} 14... Nxe5 {[%clk 0:02:52.2]} 15. f4 {[%clk 0:02:29.9]}
15... Nxd3 {[%clk 0:02:51.4]} 16. cxd3 {[%clk 0:02:30.8]} 16... Qb6+ {[%clk
0:02:51.3]} 17. Qf2 {[%clk 0:02:12.8]} 17... Qxb3 {[%clk 0:02:50.9]} 18. Nc4
{[%clk 0:02:12.8]} 18... Bd7 {[%clk 0:02:34.7]} 19. Nb6 {[%clk 0:01:58.7]} 19...
Rd8 {[%clk 0:02:33.4]} 20. Nxd7 {[%clk 0:01:41.6]} 20... Rxd7 {[%clk 0:02:29.5]}
21. d4 {[%clk 0:01:41.7]} 21... Kf8 {[%clk 0:02:23.4]} 22. f5 {[%clk 0:01:36.8]}
22... gxf5 {[%clk 0:02:19.2]} 23. exf5 {[%clk 0:01:36.9]} 23... Bg5 {[%clk
0:02:00]} 24. Rae1 {[%clk 0:01:28.9]} 24... e5 {[%clk 0:01:30.3]} 25. dxe5
{[%clk 0:01:26.4]} 25... dxe5 {[%clk 0:01:30.3]} 26. f6 {[%clk 0:01:13.4]} 26...
Qd5 {[%clk 0:01:17.2]} 27. Re2 {[%clk 0:00:57.5]} 27... Qd4 {[%clk 0:01:16]} 0-1

[Event "*** SCC Grand Prix: Titled Tuesday Blitz"]
[Site "Chess.com"]
[Date "2020.07.21"]
[Round "7"]
[White "Jojo_1608"]
[Black "AsaHoffmann"]
[Result "0-1"]
[WhiteElo "2245"]
[BlackElo "2425"]
[TimeControl "180+1"]
[EndTime "11:15:34 PDT"]
[Termination "AsaHoffmann won by resignation"]

1. d4 {[%clk 0:03:00.9]} 1... Nf6 {[%clk 0:01:45.6]} 2. c4 {[%clk 0:02:58.9]}
2... c5 {[%clk 0:01:44.9]} 3. d5 {[%clk 0:02:57.7]} 3... e5 {[%clk 0:01:44.4]}
4. Nc3 {[%clk 0:02:57.1]} 4... d6 {[%clk 0:01:44.2]} 5. h3 {[%clk 0:02:54.6]}
5... Be7 {[%clk 0:01:43.4]} 6. e4 {[%clk 0:02:53.9]} 6... Nbd7 {[%clk 0:01:43]}
7. Nf3 {[%clk 0:02:53.4]} 7... Nf8 {[%clk 0:01:42.4]} 8. Bd3 {[%clk 0:02:51.9]}
8... Ng6 {[%clk 0:01:42.1]} 9. g4 {[%clk 0:02:38.1]} 9... O-O {[%clk 0:01:40.4]}
10. O-O {[%clk 0:02:33.6]} 10... h6 {[%clk 0:01:38.8]} 11. Be3 {[%clk
0:02:30.5]} 11... a6 {[%clk 0:01:37.1]} 12. a4 {[%clk 0:02:29.9]} 12... Nh7
{[%clk 0:01:35.9]} 13. Qd2 {[%clk 0:02:27.1]} 13... b6 {[%clk 0:01:33.5]} 14.
Ne2 {[%clk 0:02:25.5]} 14... Ng5 {[%clk 0:01:32.8]} 15. Nxg5 {[%clk 0:02:20.4]}
15... Bxg5 {[%clk 0:01:31.9]} 16. f4 {[%clk 0:02:10.9]} 16... exf4 {[%clk
0:01:28.6]} 17. Nxf4 {[%clk 0:02:10.5]} 17... Ne5 {[%clk 0:01:28.1]} 18. Be2
{[%clk 0:02:04.2]} 18... Bd7 {[%clk 0:01:27.2]} 19. b3 {[%clk 0:02:02.9]} 19...
Qe7 {[%clk 0:01:26.7]} 20. Nd3 {[%clk 0:01:56]} 20... Ng6 {[%clk 0:01:21]} 21.
Bxg5 {[%clk 0:01:51.2]} 21... hxg5 {[%clk 0:01:20.2]} 22. Bf3 {[%clk 0:01:51.2]}
22... Ne5 {[%clk 0:01:14.4]} 23. Rab1 {[%clk 0:01:45.4]} 23... g6 {[%clk
0:01:12.7]} 24. Bg2 {[%clk 0:01:43]} 24... Kg7 {[%clk 0:01:12.2]} 25. b4 {[%clk
0:01:42.2]} 25... Nxc4 {[%clk 0:01:10.1]} 26. Qc3+ {[%clk 0:01:38.8]} 26... Ne5
{[%clk 0:01:09.9]} 27. bxc5 {[%clk 0:01:38.2]} 27... bxc5 {[%clk 0:01:09.6]} 28.
Rb7 {[%clk 0:01:34.9]} 28... f6 {[%clk 0:01:06.9]} 29. Rfb1 {[%clk 0:01:27.4]}
29... Rf7 {[%clk 0:01:05.3]} 30. Nb4 {[%clk 0:01:23]} 30... Qe8 {[%clk 0:01:03]}
31. Rb6 {[%clk 0:01:22.5]} 31... cxb4 {[%clk 0:00:55.9]} 0-1

[Event "*** SCC Grand Prix: Titled Tuesday Blitz"]
[Site "Chess.com"]
[Date "2020.07.21"]
[Round "7"]
[White "mariangie523"]
[Black "Sacbutt"]
[Result "1-0"]
[WhiteElo "2034"]
[BlackElo "2243"]
[TimeControl "180+1"]
[EndTime "11:15:37 PDT"]
[Termination "mariangie523 won by resignation"]

1. e4 {[%clk 0:03:00.9]} 1... c5 {[%clk 0:02:58.8]} 2. Nf3 {[%clk 0:03:00.2]}
2... d6 {[%clk 0:02:58.5]} 3. d4 {[%clk 0:03:00.2]} 3... cxd4 {[%clk 0:02:59.4]}
4. Nxd4 {[%clk 0:03:00.4]} 4... Nf6 {[%clk 0:03:00]} 5. f3 {[%clk 0:03:00.2]}
5... a6 {[%clk 0:02:56.2]} 6. c4 {[%clk 0:03:00]} 6... g6 {[%clk 0:02:55.2]} 7.
Nc3 {[%clk 0:02:56.9]} 7... Bg7 {[%clk 0:02:55.1]} 8. Be3 {[%clk 0:02:57.1]}
8... O-O {[%clk 0:02:54.8]} 9. Be2 {[%clk 0:02:56]} 9... Bd7 {[%clk 0:02:50.9]}
10. O-O {[%clk 0:02:55.9]} 10... Nc6 {[%clk 0:02:51.4]} 11. Qd2 {[%clk
0:02:55.8]} 11... Re8 {[%clk 0:02:47.9]} 12. Rfd1 {[%clk 0:02:55.8]} 12... Qa5
{[%clk 0:02:46.5]} 13. Rac1 {[%clk 0:02:54.7]} 13... Rad8 {[%clk 0:02:44.6]} 14.
a3 {[%clk 0:02:49.1]} 14... Rc8 {[%clk 0:02:29.8]} 15. Bf1 {[%clk 0:02:37]}
15... Ne5 {[%clk 0:02:24.4]} 16. b3 {[%clk 0:02:03.3]} 16... Qxa3 {[%clk
0:01:54.1]} 17. Ra1 {[%clk 0:01:37.2]} 17... Qb4 {[%clk 0:01:47.5]} 18. Nc2
{[%clk 0:01:36.9]} 18... Qxb3 {[%clk 0:01:46]} 19. Rdb1 {[%clk 0:01:36.4]} 19...
Nxc4 {[%clk 0:01:45.2]} 20. Rxb3 {[%clk 0:01:36.2]} 20... Nxd2 {[%clk
0:01:45.2]} 21. Bxd2 {[%clk 0:01:36.4]} 21... Be6 {[%clk 0:01:19.3]} 22. Rxb7
{[%clk 0:01:24.4]} 22... Nxe4 {[%clk 0:01:18.8]} 23. fxe4 {[%clk 0:01:19.7]}
23... Bxc3 {[%clk 0:01:18.7]} 24. Bxc3 {[%clk 0:01:16.9]} 24... Rxc3 {[%clk
0:01:19.6]} 25. Nd4 {[%clk 0:01:12.4]} 25... Bc4 {[%clk 0:01:18.1]} 26. Rc7
{[%clk 0:01:05.3]} 26... e5 {[%clk 0:01:09.6]} 27. Bxc4 {[%clk 0:00:54]} 27...
exd4 {[%clk 0:01:07.1]} 28. Bxf7+ {[%clk 0:00:50]} 28... Kf8 {[%clk 0:01:06.7]}
29. Rxc3 {[%clk 0:00:47.9]} 29... Re7 {[%clk 0:01:06.8]} 1-0